fUST/lending_fUST_20250213
["ID","MTS","AMOUNT","RATE_DAILY","PERIOD"]
[352891188,1739392244275,-464.8166545,0.00011506,2]
[352891190,1739392244285,-500.0,0.00011506,2]
[352891192,1739392244294,-504.62353445,0.00011506,2]
[352891194,1739392244304,-500.0,0.00011506,2]
[352891196,1739392244313,-500.0,0.00011506,2]
[352891198,1739392244323,-500.0,0.00011506,2]
[352891200,1739392244332,-500.0,0.00011506,2]
[352891202,1739392244342,-606.65,0.00011506,2]
[352891204,1739392244351,-500.0,0.00011506,2]
[352891206,1739392244360,-500.0,0.00011506,2]
[352891208,1739392244371,-500.0,0.00011506,2]
[352891210,1739392244380,-705.48,0.00011506,2]
[352891212,1739392244390,-500.0,0.00011506,2]
[352891214,1739392244399,-500.0,0.00011506,2]
[352891216,1739392244408,-500.0,0.00011506,2]
[352891217,1739392244417,-3136.41,0.00011506,2]
[352891219,1739392244426,-500.0,0.00011506,2]
[352891221,1739392244436,-500.0,0.00011506,2]
[352891223,1739392244445,-583.6,0.00011506,2]
[352891225,1739392244454,-500.0,0.00011506,2]
[352891227,1739392244464,-500.0,0.00011506,2]
[352891229,1739392244473,-500.0,0.00011506,2]
[352891231,1739392244482,-1250.2,0.00011506,2]
[352891233,1739392244492,-500.0,0.00011506,2]
[352891235,1739392244501,-500.0,0.00011506,2]
[352891237,1739392244511,-500.0,0.00011506,2]
[352891239,1739392244523,-500.0,0.00011506,2]
[352891241,1739392244533,-10697.67,0.00011506,2]
[352891243,1739392244542,-500.0,0.00011506,2]
[352891245,1739392244551,-500.0,0.00011506,2]
[352891247,1739392244562,-500.0,0.00011506,2]
[352891249,1739392244571,-500.0,0.00011506,2]
[352891251,1739392244580,-616.97,0.00011506,2]
[352891253,1739392244590,-500.0,0.00011506,2]
[352891255,1739392244600,-500.0,0.00011506,2]
[352891257,1739392244610,-500.0,0.00011506,2]
[352891259,1739392244621,-500.0,0.00011506,2]
[352891261,1739392244631,-858.92,0.00011506,2]
[352891263,1739392244640,-8463.2,0.00011506,2]
[352891265,1739392244650,-500.0,0.00011506,2]
[352891267,1739392244659,-500.0,0.00011506,2]
[352891269,1739392244669,-2862.12,0.00011506,2]
[352891271,1739392244679,-500.0,0.00011506,2]
[352891273,1739392244689,-500.0,0.00011506,2]
[352891275,1739392244698,-500.0,0.00011506,2]
[352891277,1739392244708,-1487.37,0.00011506,2]
[352891279,1739392244717,-500.0,0.00011506,2]
[352891281,1739392244726,-500.0,0.00011506,2]
[352891283,1739392244736,-500.0,0.00011506,2]
[352891285,1739392244745,-630.78718659,0.00011506,2]
[352891295,1739392244824,-3104.52,0.00011506,2]
[352891297,1739392244841,-848.99,0.00011506,2]
[352891299,1739392244851,-582.73,0.00011506,2]
[352891301,1739392244861,-500.0,0.00011506,2]
[352891303,1739392244873,-501.63341583,0.00011506,2]
[352891305,1739392244883,-3478.93,0.00011506,2]
[352891307,1739392244892,-336.65247699,0.00011506,2]
[352891309,1739392244902,-623.57,0.00011506,2]
[352891311,1739392244912,-500.0,0.00011506,2]
[352891313,1739392244921,-1349.55,0.00011506,2]
[352891315,1739392244930,-492.57355672,0.00011506,2]
[352891317,1739392244940,-3327.98,0.00011506,2]
[352891319,1739392244949,-500.0,0.00011506,2]
[352891321,1739392244958,-500.0,0.00011506,2]
[352891323,1739392244967,-500.0,0.00011506,2]
[352891325,1739392244977,-500.0,0.00011506,2]
[352891327,1739392244986,-2216.29619753,0.00011506,4]
[352891329,1739392244996,-2711.65,0.00011506,2]
[352891331,1739392245005,-500.0,0.00011506,2]
[352891333,1739392245014,-500.0,0.00011506,2]
[352891335,1739392245024,-500.0,0.00011506,2]
[352891337,1739392245033,-5143.51,0.00011506,2]
[352891339,1739392245042,-500.0,0.00011506,2]
[352891341,1739392245051,-14479.95,0.00011506,2]
[352891343,1739392245060,-1054.47,0.00011506,2]
[352891345,1739392245070,-1177.65,0.00011506,2]
[352891347,1739392245079,-500.0,0.00011506,2]
[352891349,1739392245090,-500.0,0.00011506,2]
[352891351,1739392245099,-634.45450544,0.00011506,2]
[352891353,1739392245108,-2107.88,0.00011506,2]
[352891355,1739392245119,-633.52,0.00011506,2]
[352891357,1739392245128,-35239.76,0.00011506,2]
[352891359,1739392245138,-1306.69,0.00011506,2]
[352891361,1739392245147,-4102.13,0.00011506,2]
[352891363,1739392245156,-1548.48,0.00011506,2]
[352891365,1739392245166,-1859.03,0.00011506,2]
[352891367,1739392245175,-500.0,0.00011506,2]
[352891369,1739392245185,-500.0,0.00011547,2]
[352891371,1739392245194,-500.0,0.00011586,2]
[352891373,1739392245203,-151.0,0.000116,2]
[352891375,1739392245213,-151.0,0.000116,2]
[352891377,1739392245222,-151.0,0.000116,2]
[352891379,1739392245232,-112521.00773049,0.00011614,2]
[352891381,1739392245241,-500.0,0.00011629,2]
[352891383,1739392245252,-608.5,0.00011643,2]
[352891385,1739392245261,-500.0,0.00011643,2]
[352891387,1739392245271,-500.0,0.00011643,2]
[352891389,1739392245280,-500.0,0.00011643,2]
[352891391,1739392245289,-500.0,0.00011643,2]
[352891393,1739392245300,-500.0,0.00011643,2]
[352891395,1739392245310,-621.62,0.00011643,2]
[352891397,1739392245319,-500.0,0.00011643,2]
[352891399,1739392245328,-500.0,0.00011643,2]
[352891401,1739392245338,-500.0,0.00011643,2]
[352891403,1739392245348,-500.0,0.00011643,2]
[352891405,1739392245357,-500.0,0.00011643,2]
[352891407,1739392245368,-500.0,0.00011643,2]
[352891409,1739392245377,-500.0,0.00011643,2]
[352891411,1739392245386,-500.0,0.00011643,2]
[352891413,1739392245395,-500.0,0.00011643,2]
[352891415,1739392245405,-500.0,0.00011643,2]
[352891417,1739392245415,-500.0,0.00011643,2]
[352891419,1739392245424,-500.0,0.00011643,2]
[352891421,1739392245433,-500.0,0.00011643,2]
[352891423,1739392245443,-500.0,0.00011643,2]
[352891425,1739392245452,-500.0,0.00011643,2]
[352891427,1739392245461,-500.0,0.00011643,2]
[352891429,1739392245471,-500.0,0.00011643,2]
[352891431,1739392245480,-500.0,0.00011643,2]
[352891432,1739392245489,-500.0,0.00011643,2]
[352891434,1739392245499,-500.0,0.00011643,2]
[352891436,1739392245509,-500.0,0.00011643,2]
[352891438,1739392245519,-500.0,0.00011643,2]
[352891440,1739392245530,-500.0,0.00011643,2]
[352891442,1739392245539,-500.0,0.00011643,2]
[352891444,1739392245549,-500.0,0.00011643,2]
[352891446,1739392245558,-500.0,0.00011643,2]
[352891448,1739392245569,-500.0,0.00011643,2]
[352891450,1739392245579,-500.0,0.00011643,2]
[352891452,1739392245588,-500.0,0.00011643,2]
[352891454,1739392245598,-500.0,0.00011643,2]
[352891456,1739392245608,-500.0,0.00011643,2]
[352891458,1739392245618,-500.0,0.00011643,2]
[352891460,1739392245627,-500.0,0.00011643,2]
[352891462,1739392245636,-500.0,0.00011643,2]
[352891464,1739392245645,-500.0,0.00011643,2]
[352891466,1739392245655,-500.0,0.00011643,2]
[352891468,1739392245664,-500.0,0.00011643,2]
[352891470,1739392245673,-500.0,0.00011643,2]
[352891472,1739392245683,-212.2988249,0.00011643,2]
[352891474,1739392245693,-500.0,0.00011643,2]
[352891476,1739392245703,-500.0,0.00011643,2]
[352891478,1739392245713,-500.0,0.00011643,2]
[352891480,1739392245723,-500.0,0.00011643,2]
[352891481,1739392245733,-500.0,0.00011643,2]
[352891483,1739392245743,-500.0,0.00011643,2]
[352891485,1739392245753,-500.0,0.00011643,2]
[352891487,1739392245763,-500.0,0.00011643,2]
[352891489,1739392245773,-500.0,0.00011643,2]
[352891491,1739392245784,-500.0,0.00011643,2]
[352891493,1739392245794,-606.65,0.00011643,2]
[352891495,1739392245803,-500.0,0.00011643,2]
[352891497,1739392245813,-500.0,0.00011643,2]
[352891499,1739392245823,-500.0,0.00011643,2]
[352891501,1739392245833,-705.48,0.00011643,2]
[352891503,1739392245842,-500.0,0.00011643,2]
[352891505,1739392245852,-500.0,0.00011643,2]
[352891507,1739392245861,-500.0,0.00011643,2]
[352891509,1739392245871,-3136.41,0.00011643,2]
[352891511,1739392245881,-500.0,0.00011643,2]
[352891513,1739392245890,-500.0,0.00011643,2]
[352891515,1739392245899,-583.6,0.00011643,2]
[352891517,1739392245909,-502.84029761,0.00011643,2]
[352891519,1739392245918,-500.0,0.00011643,2]
[352891521,1739392245928,-500.0,0.00011643,2]
[352891523,1739392245938,-1250.2,0.00011643,2]
[352891525,1739392245947,-500.0,0.00011643,2]
[352891527,1739392245957,-500.0,0.00011643,2]
[352891529,1739392245966,-500.0,0.00011643,2]
[352891531,1739392245976,-500.0,0.00011643,2]
[352891533,1739392245986,-10697.67,0.00011643,2]
[352891535,1739392245995,-500.0,0.00011643,2]
[352891537,1739392246005,-500.0,0.00011643,2]
[352891539,1739392246015,-500.0,0.00011643,2]
[352891541,1739392246024,-500.0,0.00011643,2]
[352891543,1739392246034,-616.97,0.00011643,2]
[352891545,1739392246043,-500.0,0.00011643,2]
[352891547,1739392246052,-500.0,0.00011643,2]
[352891549,1739392246062,-500.0,0.00011643,2]
[352891551,1739392246071,-500.0,0.00011643,2]
[352891553,1739392246082,-858.92,0.00011643,2]
[352891555,1739392246091,-8463.2,0.00011643,2]
[352891557,1739392246100,-500.0,0.00011643,2]
[352891559,1739392246109,-500.0,0.00011643,2]
[352891561,1739392246120,-2862.12,0.00011643,2]
[352891563,1739392246130,-511.38471762,0.00011643,2]
[352891565,1739392246139,-500.0,0.00011643,2]
[352891567,1739392246148,-500.0,0.00011643,2]
[352891577,1739392246231,-1487.37,0.00011643,2]
[352891579,1739392246241,-500.0,0.00011643,2]
[352891581,1739392246250,-500.0,0.00011643,2]
[352891583,1739392246261,-500.0,0.00011643,2]
[352891585,1739392246272,-3104.52,0.00011643,2]
[352891587,1739392246283,-848.99,0.00011643,2]
[352891589,1739392246292,-582.73,0.00011643,2]
[352891591,1739392246302,-500.0,0.00011643,2]
[352891593,1739392246311,-3478.93,0.00011643,2]
[352891595,1739392246320,-623.57,0.00011643,2]
[352891597,1739392246330,-500.0,0.00011643,2]
[352891599,1739392246339,-1349.55,0.00011643,2]
[352891601,1739392246348,-3327.98,0.00011643,2]
[352891603,1739392246358,-279.33402486,0.00011643,2]
[352891604,1739392246367,-500.0,0.00011643,2]
[352891605,1739392246380,-500.0,0.00011643,2]
[352891606,1739392246390,-500.0,0.00011643,2]
[352891607,1739392246399,-163.394877,0.00011643,2]
[352891608,1739392246408,-151.0,0.00011643,2]
[352891609,1739392246418,-2711.65,0.00011643,2]
[352891610,1739392246427,-163.394877,0.00011643,2]
[352891611,1739392246436,-500.0,0.00011643,2]
[352891612,1739392246446,-500.0,0.00011643,2]
[352891613,1739392246455,-500.0,0.00011643,2]
[352891614,1739392246464,-5143.51,0.00011643,2]
[352891615,1739392246474,-500.0,0.00011643,2]
[352891616,1739392246483,-14479.95,0.00011643,2]
[352891617,1739392246493,-1054.47,0.00011643,2]
[352891619,1739392246504,-1177.65,0.00011643,2]
[352891620,1739392246514,-329.52937007,0.00011643,2]
[352891622,1739392246527,-500.0,0.00011643,2]
[352891624,1739392246537,-151.0,0.00011643,2]
[352891626,1739392246547,-2107.88,0.00011643,2]
[352891628,1739392246558,-633.52,0.00011643,2]
[352891630,1739392246567,-35239.76,0.00011643,2]
[352891632,1739392246577,-1306.69,0.00011643,2]
[352891634,1739392246587,-4102.13,0.00011643,2]
[352891636,1739392246596,-1754.451824,0.00011643,2]
[352891638,1739392246607,-151.001073,0.00011643,2]
[352891640,1739392246617,-1754.451824,0.00011643,2]
[352891642,1739392246627,-151.0,0.00011643,2]
[352891644,1739392246636,-1548.48,0.00011643,2]
[352891646,1739392246646,-151.0,0.00011643,2]
[352891648,1739392246656,-156.985941,0.00011643,2]
[352891650,1739392246665,-1859.03,0.00011643,2]
[352891652,1739392246675,-500.0,0.00011643,2]
[352891654,1739392246685,-160.71672768,0.00011673,2]
[352891656,1739392246694,-500.0,0.00011673,2]
[352891658,1739392246704,-500.0,0.00011673,2]
[352891660,1739392246713,-500.0,0.00011673,2]
[352891662,1739392246722,-260.12200685,0.00011673,2]
[352891664,1739392246731,-500.0,0.00011673,2]
[352891666,1739392246740,-267.23569297,0.00011673,2]
[352891668,1739392246750,-500.0,0.00011673,2]
[352891670,1739392246759,-500.0,0.00011673,2]
[352891672,1739392246769,-151.0,0.000117,2]
[352891674,1739392246778,-500.0,0.00011711,2]
[352891676,1739392246788,-500.0,0.00011711,2]
[352891678,1739392246797,-302.58,0.0001178,2]
[352891680,1739392246806,-500.0,0.0001178,2]
[352891682,1739392246816,-500.0,0.0001178,2]
[352891684,1739392246826,-500.0,0.0001178,2]
[352891686,1739392246835,-500.0,0.0001178,2]
[352891688,1739392246845,-500.0,0.0001178,2]
[352891690,1739392246854,-500.0,0.0001178,2]
[352891692,1739392246865,-500.0,0.0001178,2]
[352891694,1739392246876,-500.0,0.0001178,2]
[352891696,1739392246886,-500.0,0.0001178,2]
[352891698,1739392246895,-500.0,0.0001178,2]
[352891700,1739392246904,-500.0,0.0001178,2]
[352891702,1739392246914,-500.0,0.0001178,2]
[352891704,1739392246923,-500.0,0.0001178,2]
[352891706,1739392246932,-500.0,0.0001178,2]
[352891708,1739392246941,-500.0,0.0001178,2]
[352891710,1739392246950,-500.0,0.0001178,2]
[352891712,1739392246959,-500.0,0.0001178,2]
[352891714,1739392246968,-500.0,0.0001178,2]
[352891716,1739392246977,-500.0,0.0001178,2]
[352891717,1739392246987,-500.0,0.0001178,2]
[352891719,1739392246996,-500.0,0.0001178,2]
[352891721,1739392247006,-407.53181172,0.0001178,2]
[352891723,1739392247016,-500.0,0.0001178,2]
[352891726,1739392247025,-500.0,0.0001178,2]
[352891728,1739392247036,-500.0,0.0001178,2]
[352891730,1739392247045,-500.0,0.0001178,2]
[352891732,1739392247054,-500.0,0.0001178,2]
[352891733,1739392247063,-500.0,0.0001178,2]
[352891735,1739392247073,-500.0,0.0001178,2]
[352891738,1739392247082,-500.0,0.0001178,2]
[352891739,1739392247091,-500.0,0.0001178,2]
[352891741,1739392247101,-500.0,0.0001178,2]
[352891744,1739392247111,-500.0,0.0001178,2]
[352891745,1739392247121,-500.0,0.0001178,2]
[352891748,1739392247130,-500.0,0.0001178,2]
[352891750,1739392247140,-500.0,0.0001178,2]
[352891751,1739392247149,-500.0,0.0001178,2]
[352891753,1739392247158,-500.0,0.0001178,2]
[352891756,1739392247168,-500.0,0.0001178,2]
[352891757,1739392247178,-446.8,0.0001178,2]
[352891759,1739392247187,-606.65,0.0001178,2]
[352891762,1739392247197,-500.0,0.0001178,2]
[352891763,1739392247206,-500.0,0.0001178,2]
[352891765,1739392247216,-500.0,0.0001178,2]
[352891767,1739392247226,-705.48,0.0001178,2]
[352891769,1739392247235,-500.0,0.0001178,2]
[352891771,1739392247245,-500.0,0.0001178,2]
[352891774,1739392247254,-500.0,0.0001178,2]
[352891776,1739392247264,-3136.41,0.0001178,2]
[352891778,1739392247274,-500.0,0.0001178,2]
[352891780,1739392247284,-500.0,0.0001178,2]
[352891782,1739392247294,-583.6,0.0001178,2]
[352891784,1739392247303,-500.0,0.0001178,2]
[352891785,1739392247312,-500.0,0.0001178,2]
[352891787,1739392247322,-1250.2,0.0001178,2]
[352891789,1739392247331,-500.0,0.0001178,2]
[352891791,1739392247341,-500.0,0.0001178,2]
[352891793,1739392247350,-500.0,0.0001178,2]
[352891795,1739392247360,-500.0,0.0001178,2]
[352891797,1739392247370,-10697.67,0.0001178,2]
[352891799,1739392247380,-500.0,0.0001178,2]
[352891801,1739392247389,-500.0,0.0001178,2]
[352891803,1739392247399,-500.0,0.0001178,2]
[352891805,1739392247408,-500.0,0.0001178,2]
[352891808,1739392247418,-616.97,0.0001178,2]
[352891809,1739392247427,-500.0,0.0001178,2]
[352891811,1739392247437,-500.0,0.0001178,2]
[352891821,1739392247519,-500.0,0.0001178,2]
[352891823,1739392247532,-500.0,0.0001178,2]
[352891825,1739392247541,-858.92,0.0001178,2]
[352891827,1739392247552,-8463.2,0.0001178,2]
[352891829,1739392247562,-500.0,0.0001178,2]
[352891831,1739392247572,-500.0,0.0001178,2]
[352891833,1739392247582,-2862.12,0.0001178,2]
[352891835,1739392247592,-500.0,0.0001178,2]
[352891837,1739392247602,-500.0,0.0001178,2]
[352891839,1739392247612,-1487.37,0.0001178,2]
[352891841,1739392247622,-500.0,0.0001178,2]
[352891843,1739392247631,-500.0,0.0001178,2]
[352891845,1739392247640,-151.0,0.0001178,2]
[352891847,1739392247649,-151.0,0.0001178,2]
[352891849,1739392247659,-3104.52,0.0001178,2]
[352891851,1739392247668,-848.99,0.0001178,2]
[352891853,1739392247678,-582.73,0.0001178,2]
[352891855,1739392247687,-500.0,0.0001178,2]
[352891857,1739392247696,-3478.93,0.0001178,2]
[352891859,1739392247706,-623.57,0.0001178,2]
[352891861,1739392247715,-500.0,0.0001178,2]
[352891863,1739392247725,-1349.55,0.0001178,2]
[352891865,1739392247735,-151.0,0.0001178,2]
[352891867,1739392247745,-3327.98,0.0001178,2]
[352891869,1739392247755,-151.0,0.0001178,2]
[352891871,1739392247766,-500.0,0.0001178,2]
[352891873,1739392247775,-500.0,0.0001178,2]
[352891875,1739392247785,-2711.65,0.0001178,2]
[352891877,1739392247795,-500.0,0.0001178,2]
[352891879,1739392247805,-500.0,0.0001178,2]
[352891881,1739392247815,-5143.51,0.0001178,2]
[352891883,1739392247825,-500.0,0.0001178,2]
[352891885,1739392247835,-14479.95,0.0001178,2]
[352891887,1739392247844,-1054.47,0.0001178,2]
[352891889,1739392247854,-1177.65,0.0001178,2]
[352891891,1739392247864,-500.0,0.0001178,2]
[352891893,1739392247874,-2107.88,0.0001178,2]
[352891895,1739392247883,-633.52,0.0001178,2]
[352891897,1739392247893,-35239.76,0.0001178,2]
[352891899,1739392247902,-1306.69,0.0001178,2]
[352891901,1739392247912,-4102.13,0.0001178,2]
[352891903,1739392247922,-1548.48,0.0001178,2]
[352891905,1739392247932,-1859.03,0.0001178,2]
[352891907,1739392247941,-500.0,0.00011785,2]
[352891909,1739392247951,-274.64778932,0.00011785,2]
[352891911,1739392247960,-151.0,0.000118,2]
[352891913,1739392247969,-504.91411847,0.00011847,2]
[352891915,1739392247979,-500.0,0.00011869,2]
[352891917,1739392247988,-151.0,0.000119,2]
[352891919,1739392247998,-500.0,0.00011917,2]
[352891921,1739392248007,-500.0,0.00011917,2]
[352891923,1739392248016,-506.5,0.00011917,2]
[352891925,1739392248026,-500.0,0.00011917,2]
[352891927,1739392248037,-500.0,0.00011917,2]
[352891929,1739392248046,-500.0,0.00011917,2]
[352891931,1739392248057,-500.0,0.00011917,2]
[352891933,1739392248066,-500.0,0.00011917,2]
[352891935,1739392248076,-500.0,0.00011917,2]
[352891937,1739392248085,-500.0,0.00011917,2]
[352891939,1739392248095,-500.0,0.00011917,2]
[352891941,1739392248104,-500.0,0.00011917,2]
[352891943,1739392248114,-500.0,0.00011917,2]
[352891945,1739392248124,-500.0,0.00011917,2]
[352891947,1739392248134,-500.0,0.00011917,2]
[352891949,1739392248144,-500.0,0.00011917,2]
[352891951,1739392248154,-500.0,0.00011917,2]
[352891953,1739392248164,-500.0,0.00011917,2]
[352891955,1739392248174,-500.0,0.00011917,2]
[352891957,1739392248185,-500.0,0.00011917,2]
[352891959,1739392248197,-500.0,0.00011917,2]
[352891961,1739392248208,-500.0,0.00011917,2]
[352891963,1739392248218,-500.0,0.00011917,2]
[352891966,1739392248231,-565.10430354,0.00011917,2]
[352891968,1739392248241,-500.0,0.00011917,2]
[352891969,1739392248250,-500.0,0.00011917,2]
[352891971,1739392248261,-500.0,0.00011917,2]
[352891973,1739392248271,-500.0,0.00011917,2]
[352891975,1739392248281,-500.0,0.00011917,2]
[352891977,1739392248291,-500.0,0.00011917,2]
[352891979,1739392248300,-500.0,0.00011917,2]
[352891982,1739392248311,-500.0,0.00011917,2]
[352891983,1739392248320,-606.65,0.00011917,2]
[352891985,1739392248330,-500.0,0.00011917,2]
[352891987,1739392248339,-500.0,0.00011917,2]
[352891989,1739392248349,-500.0,0.00011917,2]
[352891991,1739392248358,-705.48,0.00011917,2]
[352891993,1739392248369,-500.0,0.00011917,2]
[352891995,1739392248379,-500.0,0.00011917,2]
[352891997,1739392248389,-500.0,0.00011917,2]
[352891999,1739392248399,-3136.41,0.00011917,2]
[352892002,1739392248409,-500.0,0.00011917,2]
[352892003,1739392248419,-500.0,0.00011917,2]
[352892005,1739392248429,-583.6,0.00011917,2]
[352892007,1739392248438,-500.0,0.00011917,2]
[352892009,1739392248448,-500.0,0.00011917,2]
[352892011,1739392248458,-1250.2,0.00011917,2]
[352892013,1739392248468,-500.0,0.00011917,2]
[352892015,1739392248481,-500.0,0.00011917,2]
[352892017,1739392248491,-500.0,0.00011917,2]
[352892019,1739392248504,-500.0,0.00011917,2]
[352892021,1739392248523,-10697.67,0.00011917,2]
[352892023,1739392248535,-500.0,0.00011917,2]
[352892025,1739392248546,-500.0,0.00011917,2]
[352892027,1739392248556,-151.0,0.00011917,2]
[352892029,1739392248567,-500.0,0.00011917,2]
[352892031,1739392248577,-151.0,0.00011917,2]
[352892033,1739392248586,-616.97,0.00011917,2]
[352892035,1739392248596,-500.0,0.00011917,2]
[352892037,1739392248606,-151.0,0.00011917,2]
[352892039,1739392248616,-500.0,0.00011917,2]
[352892041,1739392248627,-500.0,0.00011917,2]
[352892043,1739392248637,-151.0,0.00011917,2]
[352892045,1739392248647,-500.0,0.00011917,2]
[352892047,1739392248657,-858.92,0.00011917,2]
[352892049,1739392248669,-8463.2,0.00011917,2]
[352892051,1739392248679,-500.0,0.00011917,2]
[352892060,1739392248759,-151.0,0.00011917,2]
[352892062,1739392248770,-2862.12,0.00011917,2]
[352892064,1739392248781,-500.0,0.00011917,2]
[352892066,1739392248791,-151.0,0.00011917,2]
[352892068,1739392248802,-500.0,0.00011917,2]
[352892070,1739392248812,-1487.37,0.00011917,2]
[352892072,1739392248823,-500.0,0.00011917,2]
[352892074,1739392248832,-500.0,0.00011917,2]
[352892076,1739392248843,-3104.52,0.00011917,2]
[352892078,1739392248853,-848.99,0.00011917,2]
[352892080,1739392248863,-582.73,0.00011917,2]
[352892082,1739392248875,-500.0,0.00011917,2]
[352892084,1739392248885,-3478.93,0.00011917,2]
[352892086,1739392248895,-623.57,0.00011917,2]
[352892088,1739392248904,-500.0,0.00011917,2]
[352892090,1739392248914,-1349.55,0.00011917,2]
[352892092,1739392248924,-3327.98,0.00011917,2]
[352892094,1739392248934,-500.0,0.00011917,2]
[352892096,1739392248944,-500.0,0.00011917,2]
[352892098,1739392248955,-163.394877,0.00011917,2]
[352892100,1739392248964,-163.394877,0.00011917,2]
[352892102,1739392248974,-2711.65,0.00011917,2]
[352892104,1739392248984,-500.0,0.00011917,2]
[352892106,1739392248993,-500.0,0.00011917,2]
[352892108,1739392249004,-5143.51,0.00011917,2]
[352892110,1739392249014,-500.0,0.00011917,2]
[352892112,1739392249023,-14479.95,0.00011917,2]
[352892114,1739392249033,-1054.47,0.00011917,2]
[352892116,1739392249043,-1177.65,0.00011917,2]
[352892118,1739392249052,-500.0,0.00011917,2]
[352892120,1739392249063,-151.0,0.00011917,2]
[352892122,1739392249073,-2107.88,0.00011917,2]
[352892124,1739392249083,-633.52,0.00011917,2]
[352892126,1739392249093,-35239.76,0.00011917,2]
[352892128,1739392249103,-1306.69,0.00011917,2]
[352892130,1739392249113,-4102.13,0.00011917,2]
[352892132,1739392249125,-1754.451824,0.00011917,2]
[352892134,1739392249135,-1754.451824,0.00011917,2]
[352892136,1739392249145,-151.0,0.00011917,2]
[352892138,1739392249156,-1548.48,0.00011917,2]
[352892140,1739392249166,-158.455396,0.00011917,2]
[352892142,1739392249175,-156.985941,0.00011917,2]
[352892144,1739392249185,-1859.03,0.00011917,2]
[352892146,1739392249195,-500.0,0.00012054,2]
[352892148,1739392249206,-500.0,0.00012054,2]
[352892150,1739392249215,-500.0,0.00012054,2]
[352892152,1739392249226,-500.0,0.00012054,2]
[352892154,1739392249235,-500.0,0.00012054,2]
[352892156,1739392249246,-500.0,0.00012054,2]
[352892158,1739392249256,-500.0,0.00012054,2]
[352892160,1739392249265,-500.0,0.00012054,2]
[352892163,1739392249277,-500.0,0.00012054,2]
[352892165,1739392249288,-500.0,0.00012054,2]
[352892167,1739392249298,-500.0,0.00012054,2]
[352892169,1739392249307,-500.0,0.00012054,2]
[352892171,1739392249318,-500.0,0.00012054,2]
[352892173,1739392249328,-500.0,0.00012054,2]
[352892175,1739392249339,-485.15,0.00012054,2]
[352892177,1739392249349,-500.0,0.00012054,2]
[352892179,1739392249359,-500.0,0.00012054,2]
[352892181,1739392249369,-500.0,0.00012054,2]
[352892183,1739392249379,-500.0,0.00012054,2]
[352892184,1739392249388,-500.0,0.00012054,2]
[352892186,1739392249398,-500.0,0.00012054,2]
[352892188,1739392249407,-500.0,0.00012054,2]
[352892191,1739392249416,-500.0,0.00012054,2]
[352892192,1739392249427,-500.0,0.00012054,2]
[352892194,1739392249436,-500.0,0.00012054,2]
[352892196,1739392249446,-500.0,0.00012054,2]
[352892198,1739392249456,-500.0,0.00012054,2]